bitfinex/quotes_SOLUSD_20251120
["timestamp","ask_amount","ask_price","bid_price","bid_amount"]
[1763647205437,4.24182594,140.89,140.8,35.87549417]
[1763647205610,4.24182594,140.87,140.82,4.24182594]
[1763647206010,5.96182594,140.88,140.83,4.96182594]
[1763647206415,4.86182594,140.88,140.83,0.72]
[1763647206726,1.72,140.87,140.84,0.72]
[1763647207110,1.72,140.87,140.82,4.96182594]
[1763647207322,0.62,140.86,140.81,4.24182594]
[1763647207633,0.62,140.86,140.8,0.72]
[1763647207634,4.24182594,140.85,140.8,4.96182594]
[1763647207932,1.72,140.84,140.8,7.82191282]
[1763647208140,1.72,140.84,140.78,0.72]
[1763647208141,2.34,140.84,140.78,0.72]
[1763647208340,4.24182594,140.82,140.78,0.72]
[1763647208661,1.72,140.81,140.76,0.72]
[1763647208819,9.44199172,140.81,140.76,0.72]
[1763647209142,0.62,140.8,140.76,4.24182594]
[1763647209348,0.62,140.8,140.76,4.96182594]
[1763647209550,4.24182594,140.8,140.76,0.72]
[1763647209750,4.86182594,140.8,140.76,0.72]
[1763647210235,1.72,140.79,140.76,4.96182594]
[1763647210445,1.72,140.79,140.76,0.72]
[1763647210625,1.72,140.79,140.77,0.72]
[1763647211243,20.08851399,140.79,140.75,0.72]
[1763647211453,20.08851399,140.79,140.74,11.26570575]
[1763647211618,19.84096,140.79,140.75,11.26570575]
[1763647211818,18.12096,140.8,140.75,11.26570575]
[1763647212012,1.72,140.79,140.76,11.98570575]
[1763647212422,1.72,140.79,140.77,11.98570575]
[1763647212826,1.72,140.79,140.78,7.82328171]
[1763647213035,18.36735721,140.82,140.78,7.82328171]
[1763647213234,1.72,140.81,140.78,7.10328171]
[1763647213432,13.60570575,140.81,140.76,7.82391676]
[1763647213758,0.62,140.8,140.72,0.72]
[1763647213959,11.26570575,140.74,140.67,7.1084142]
[1763647214132,18.12096,140.76,140.68,0.72]
[1763647214133,1.72,140.73,140.68,0.72]
[1763647214327,18.12096,140.76,140.68,0.72]
[1763647214328,1.72,140.72,140.68,0.72]
[1763647214534,1.72,140.72,140.7,11.26570575]
[1763647214732,1.72,140.73,140.71,11.26570575]
[1763647214942,30.00666575,140.76,140.71,11.98570575]
[1763647215144,1.72,140.75,140.72,0.72]
[1763647215358,1.72,140.75,140.72,11.26570575]
[1763647215657,11.26570575,140.77,140.72,0.72]
[1763647215658,1.72,140.74,140.72,0.72]
[1763647215853,19.84096,140.73,140.63,5.9919383]
[1763647216054,11.26570575,140.71,140.66,0.72]
[1763647216240,1.72,140.72,140.63,0.1]
[1763647216241,29.38666575,140.67,140.63,0.1]
[1763647216555,12.98570575,140.66,140.63,0.1]
[1763647216757,9.44944657,140.66,140.63,0.1]
[1763647216933,1.72,140.66,140.63,12.08570575]
[1763647217139,1.72,140.71,140.64,11.50882769]
[1763647217492,0.62,140.77,140.7,11.26570575]
[1763647217676,1.72,140.74,140.7,11.26570575]
[1763647217949,1.72,140.74,140.7,0.72]
[1763647218155,12.98570575,140.74,140.66,9.78882769]
[1763647218449,12.98570575,140.74,140.69,11.26570575]
[1763647218450,1.72,140.74,140.69,11.26570575]
[1763647218760,1.72,140.74,140.7,7.10732054]
[1763647218937,11.26570575,140.77,140.71,11.26570575]
[1763647219142,11.26570575,140.77,140.69,7.10771405]
[1763647219143,11.26570575,140.76,140.69,7.10771405]
[1763647219351,18.74096,140.76,140.63,0.1]
[1763647219659,11.26570575,140.71,140.66,0.72]
[1763647219867,12.98570575,140.71,140.66,0.72]
[1763647220071,1.72,140.71,140.63,1.82]
[1763647220365,11.26570575,140.69,140.64,0.68]
[1763647220533,11.26570575,140.68,140.63,7.21076545]
[1763647220728,1.72,140.68,140.65,7.10984713]
[1763647221035,11.26570575,140.67,140.63,0.1]
[1763647221237,19.84096,140.68,140.63,7.89078392]
[1763647221443,11.26570575,140.66,140.63,0.78]
[1763647221660,12.98570575,140.65,140.63,0.1]
[1763647221840,1.72,140.65,140.63,0.1]
[1763647222057,12.98570575,140.65,140.63,0.1]
[1763647222250,11.26570575,140.64,140.63,0.1]
[1763647222459,13.60570575,140.64,140.63,0.1]
[1763647222641,2.34,140.64,140.63,0.1]
[1763647222842,13.60570575,140.64,140.63,0.1]
[1763647223043,27.55965509,140.68,140.57,7.79387625]
[1763647223044,0.67,140.66,140.57,24.77860983]
[1763647223258,0.67,140.66,140.53,45.36819507]
[1763647223259,18.12096,140.61,140.53,7.1158789]
[1763647223469,11.26570575,140.63,140.53,7.1158789]
[1763647223637,12.98570575,140.62,140.56,11.26570575]
[1763647223843,12.98570575,140.62,140.54,9.78882769]
[1763647224045,11.26570575,140.55,140.49,1.93593088]
[1763647224269,1.72,140.54,140.49,1.93593088]
[1763647224469,1.72,140.53,140.49,1.93593088]
[1763647225001,18.12096,140.5,140.49,1.83593088]
[1763647225476,13.46570575,140.5,140.49,1.83593088]
[1763647225700,1.72,140.5,140.49,1.73593088]
[1763647225843,0.38,140.5,140.49,1.73593088]
[1763647226039,18.12096,140.51,140.49,1.73593088]
[1763647226246,0.38,140.5,140.49,1.73593088]
[1763647226440,1.72,140.51,140.49,1.73593088]
[1763647226639,11.26570575,140.53,140.49,8.85382216]
[1763647226886,27.90978769,140.56,140.5,0.68]
[1763647226887,18.12096,140.56,140.5,0.68]
[1763647227041,57.85834483,140.69,140.52,11.26570575]
[1763647227042,0.38,140.63,140.52,11.26570575]
[1763647227243,1.72,140.62,140.54,11.26570575]
[1763647227458,1.72,140.61,140.54,0.68]
[1763647227749,0.38,140.63,140.49,1.73593088]
[1763647227750,11.26570575,140.58,140.49,1.73593088]
[1763647228059,1.72,140.57,140.51,11.94570575]
[1763647228245,1.72,140.57,140.52,11.94570575]
[1763647228439,1.72,140.57,140.5,0.68]
[1763647228642,18.12096,140.59,140.52,11.26570575]
[1763647228864,0.38,140.69,140.58,11.26570575]
[1763647229060,11.26570575,140.68,140.61,11.26570575]
[1763647229291,1.72,140.67,140.62,11.26570575]
[1763647229462,1.72,140.67,140.58,18.12096]
[1763647229670,11.26570575,140.66,140.6,11.26570575]
[1763647229990,11.26570575,140.66,140.59,0.72]
[1763647229991,0.38,140.69,140.62,11.26570575]
[1763647230172,11.26570575,140.66,140.62,0.72]
[1763647230379,1.72,140.66,140.62,0.72]
[1763647230574,11.26570575,140.64,140.58,11.26570575]
[1763647230774,12.98570575,140.63,140.57,0.72]
[1763647231181,1.72,140.63,140.57,19.09934805]
[1763647231370,10.16882769,140.68,140.59,11.26570575]
[1763647231571,11.26570575,140.66,140.6,11.26570575]
[1763647232091,11.26570575,140.66,140.61,0.72]
[1763647232398,1.72,140.65,140.61,0.72]
[1763647232775,1.72,140.65,140.63,11.26570575]
[1763647232968,11.64570575,140.72,140.64,11.98570575]
[1763647233169,11.26570575,140.66,140.53,1.72]
[1763647233388,11.26570575,140.64,140.58,11.98570575]
[1763647233688,29.38666575,140.62,140.57,11.26570575]
[1763647234109,11.64570575,140.61,140.55,0.72]
[1763647234265,1.74,140.6,140.56,11.26570575]
[1763647234467,18.12096,140.61,140.56,11.26570575]
[1763647234673,18.12096,140.63,140.58,11.26570575]
[1763647234874,1.74,140.61,140.58,11.26570575]
[1763647235078,1.74,140.61,140.56,11.98570575]
[1763647235287,1.74,140.61,140.49,11.52475857]
[1763647235288,11.26570575,140.59,140.51,0.72]
[1763647235480,18.50096,140.6,140.51,0.72]
[1763647235481,11.26570575,140.58,140.52,11.26570575]
[1763647235688,1.74,140.57,140.52,11.26570575]
[1763647235893,31.12666575,140.57,140.52,11.26570575]
[1763647236090,29.38666575,140.57,140.52,11.26570575]
[1763647236284,18.12096,140.57,140.54,11.26570575]
[1763647236594,18.12096,140.57,140.5,7.11742551]
[1763647236595,11.26570575,140.61,140.55,11.98570575]
[1763647236894,36.49853699,140.61,140.55,0.72]
[1763647237081,36.49853699,140.61,140.54,11.26570575]
[1763647237082,13.00570575,140.6,140.54,11.26570575]
[1763647237278,13.38570575,140.6,140.54,11.26570575]
[1763647237892,1.74,140.59,140.54,11.26570575]
[1763647238103,1.74,140.59,140.53,0.72]
[1763647238396,31.12666575,140.58,140.53,11.26570575]
[1763647238591,11.26570575,140.57,140.49,1.73593088]
[1763647238893,2.12,140.58,140.52,11.26570575]
[1763647239195,2.12,140.58,140.49,1.73593088]
[1763647239196,11.26570575,140.54,140.49,1.73593088]
[1763647239495,13.00570575,140.53,140.49,1.73593088]
[1763647239796,18.12096,140.55,140.5,11.98570575]
[1763647239981,7.11340055,140.58,140.52,11.26570575]
[1763647240295,11.26570575,140.54,140.49,1.73593088]
[1763647240481,13.00570575,140.53,140.49,1.73593088]
[1763647240984,7.4964247,140.52,140.49,1.73593088]
[1763647241186,18.12096,140.5,140.49,1.73593088]
[1763647241392,18.12096,140.5,140.49,1.63593088]
[1763647241393,19.86096,140.5,140.49,1.63593088]
[1763647241584,31.40666575,140.5,140.49,1.53593088]
[1763647241785,9.78882769,140.45,140.39,11.26570575]
[1763647241996,9.78882769,140.45,140.29,1.74]
[1763647241997,11.26570575,140.43,140.29,1.74]
[1763647242197,11.26570575,140.42,140.37,11.26570575]
[1763647242400,0.71,140.47,140.4,11.26570575]
[1763647242701,0.71,140.54,140.46,11.26570575]
[1763647242879,0.71,140.54,140.4,11.97795646]
[1763647242880,1.74,140.53,140.49,11.26570575]
[1763647243084,2.45,140.53,140.48,11.26570575]
[1763647243402,2.45,140.53,140.49,11.26570575]
[1763647243403,0.71,140.53,140.49,11.26570575]
[1763647243586,7.11505309,140.55,140.47,7.11856962]
[1763647243587,0.71,140.56,140.5,11.26570575]
[1763647243902,50.0,140.7,140.53,11.26570575]
[1763647243903,1.74,140.55,140.53,11.26570575]
[1763647244079,24.88269585,140.66,140.52,11.26570575]
[1763647244080,1.74,140.54,140.52,11.26570575]
[1763647244787,1.74,140.54,140.5,0.72]
[1763647245374,1.74,140.53,140.5,0.72]
[1763647245582,1.74,140.53,140.5,11.26570575]
[1763647245900,1.74,140.53,140.49,11.26570575]
[1763647246214,1.74,140.53,140.48,11.26570575]
[1763647246402,1.74,140.53,140.48,11.98570575]
[1763647246584,18.12096,140.57,140.49,11.98570575]
[1763647246772,18.12096,140.52,140.46,0.72]
[1763647246978,1.74,140.51,140.47,11.26570575]
[1763647247202,1.74,140.51,140.47,11.98570575]
[1763647247402,11.26570575,140.49,140.44,11.26570575]
[1763647247605,0.71,140.5,140.43,11.98570575]
[1763647247790,11.26570575,140.48,140.42,0.72]
[1763647247984,1.74,140.47,140.42,11.98570575]
[1763647248299,1.74,140.46,140.44,11.26570575]
[1763647248686,1.74,140.46,140.42,0.72]
[1763647248899,1.74,140.46,140.42,11.98570575]
[1763647249204,1.74,140.45,140.35,9.78882769]
[1763647249385,11.26570575,140.47,140.42,0.72]
[1763647249590,1.74,140.46,140.36,0.72]
[1763647249797,11.26570575,140.44,140.36,0.72]
[1763647250107,18.12096,140.42,140.37,11.26570575]
[1763647250331,29.38666575,140.42,140.3,1.74]
[1763647250620,18.12096,140.33,140.2,1.93593088]
[1763647250778,18.12096,140.33,140.21,0.7]
[1763647250979,1.99999999,140.4,140.21,0.7]
[1763647250980,1.99999999,140.44,140.22,1.74]
[1763647251212,50.0,140.54,140.22,1.74]
[1763647251213,0.69,140.41,140.25,18.12096]
[1763647251385,0.69,140.41,140.26,0.7]
[1763647251386,18.12096,140.39,140.26,0.7]
[1763647251584,18.12096,140.39,140.27,9.78882769]
[1763647251880,10.47882769,140.44,140.36,11.26570575]
[1763647252193,10.47882769,140.44,140.33,0.7]
[1763647252194,11.26570575,140.4,140.33,0.7]
[1763647252396,11.26570575,140.4,140.34,11.26570575]
[1763647252601,18.81096,140.41,140.35,11.26570575]
[1763647252800,1.74,140.4,140.36,11.26570575]
[1763647253007,30.07666575,140.41,140.35,11.26570575]
[1763647253195,11.26570575,140.4,140.35,7.12504453]
[1763647253401,0.69,140.44,140.35,11.26570575]
[1763647253603,0.69,140.47,140.41,11.26570575]
[1763647253810,1.74,140.46,140.41,11.96570575]
[1763647254113,31.12666575,140.46,140.41,11.96570575]
[1763647254292,13.00570575,140.46,140.41,0.7]
[1763647255294,0.69,140.45,140.38,11.96570575]
[1763647255496,0.69,140.45,140.38,19.08922136]
[1763647255807,11.26570575,140.44,140.38,0.7]
[1763647256008,1.74,140.43,140.38,11.96570575]
[1763647256208,11.26570575,140.45,140.39,11.96570575]
[1763647256510,1.74,140.42,140.37,11.26570575]
[1763647256810,1.74,140.42,140.37,0.7]
[1763647256811,2.43,140.42,140.37,0.7]
[1763647257116,2.43,140.42,140.35,7.82470282]
[1763647257304,1.74,140.41,140.36,0.7]
[1763647257698,0.69,140.48,140.4,11.26570575]
[1763647258016,1.74,140.47,140.4,11.26570575]
[1763647258182,25.92952915,140.48,140.4,11.96570575]
[1763647258183,11.26570575,140.46,140.4,11.96570575]
[1763647258384,1.74,140.45,140.4,11.96570575]
[1763647258601,1.74,140.44,140.42,11.26570575]
[1763647259015,11.26570575,140.48,140.43,0.7]
[1763647259214,1.74,140.45,140.43,0.7]
[1763647259399,1.74,140.45,140.4,11.26570575]
[1763647259599,1.74,140.45,140.35,53.74618265]
[1763647259600,11.26570575,140.42,140.35,0.7]
[1763647259820,1.74,140.41,140.36,11.96570575]
[1763647260311,1.74,140.4,140.37,11.96570575]
[1763647260808,18.12096,140.46,140.38,0.7]
[1763647261012,11.26570575,140.43,140.38,0.7]
[1763647261320,11.26570575,140.42,140.35,0.7]
[1763647261525,0.69,140.45,140.36,0.7]
[1763647261687,1.99999999,140.52,140.36,0.7]
[1763647261688,18.48123605,140.52,140.42,11.26570575]
[1763647261889,18.48123605,140.52,140.36,0.7]
[1763647261890,1.74,140.51,140.4,11.26570575]
[1763647262123,1.74,140.51,140.44,11.26570575]
[1763647262124,11.26570575,140.5,140.44,11.26570575]
[1763647262291,11.26570575,140.5,140.44,0.7]
[1763647262495,0.69,140.54,140.46,11.26570575]
[1763647262701,0.69,140.58,140.5,11.26570575]
[1763647262907,0.69,140.58,140.51,6.49445311]
[1763647263216,1.74,140.58,140.53,13.61037141]
[1763647263715,1.74,140.58,140.55,6.49445311]
[1763647263913,1.74,140.58,140.54,0.7]
[1763647264109,8.23445311,140.58,140.53,0.7]
[1763647264413,7.31327414,140.59,140.57,6.49445311]
[1763647264414,0.2,140.59,140.57,6.49445311]
[1763647264589,0.2,140.59,140.58,7.19445311]
[1763647265308,0.2,140.59,140.58,0.7]
[1763647265485,1.99999999,140.71,140.58,0.7]
[1763647265486,0.69,140.68,140.58,14.3078405]
[1763647265690,1.74,140.7,140.65,6.49445311]
[1763647266199,1.74,140.7,140.66,7.19445311]
[1763647266653,8.23445311,140.72,140.67,7.19445311]
[1763647267230,1.74,140.72,140.67,14.30315847]
[1763647267544,1.74,140.72,140.69,6.49445311]
[1763647267874,0.69,140.79,140.71,6.49445311]
[1763647268081,6.49445311,140.79,140.73,6.49445311]
[1763647268241,1.74,140.81,140.76,6.49445311]
[1763647268564,6.49445311,140.8,140.7,18.12096]
[1763647268765,11.30547973,140.82,140.76,10.61547973]
[1763647268940,0.2,140.83,140.71,10.48882769]
[1763647269139,0.2,140.83,140.79,10.61547973]
[1763647269365,0.2,140.83,140.8,10.61547973]
[1763647269668,0.2,140.83,140.79,10.61547973]
[1763647269839,0.2,140.83,140.79,11.31547973]
[1763647270245,0.2,140.83,140.8,10.61547973]
[1763647270470,0.2,140.83,140.81,11.31547973]
[1763647270657,0.2,140.83,140.82,10.61547973]
[1763647271247,0.2,140.83,140.82,18.41674375]
[1763647271552,0.2,140.83,140.82,0.7]
[1763647271746,0.2,140.83,140.75,18.12096]
[1763647272058,0.2,140.83,140.8,10.61547973]
[1763647272368,10.81547973,140.83,140.77,10.61547973]
[1763647272568,17.91625267,140.83,140.77,10.61547973]
[1763647273362,10.61547973,140.82,140.76,11.31547973]
[1763647273760,0.2,140.83,140.78,10.61547973]
[1763647274073,0.2,140.83,140.82,10.61547973]
[1763647274472,0.2,140.83,140.82,11.31547973]
[1763647274668,0.2,140.83,140.75,24.86678507]
[1763647274872,0.2,140.83,140.79,10.61547973]
[1763647275058,7.99077198,140.83,140.76,11.31547973]
[1763647275258,10.61547973,140.81,140.76,0.7]
[1763647275457,7.10161185,140.82,140.76,0.7]
[1763647275665,17.71709158,140.82,140.76,18.41975513]
[1763647275863,17.71709158,140.82,140.76,10.61547973]
[1763647276076,10.61547973,140.8,140.74,10.61547973]
[1763647276290,10.61547973,140.8,140.74,11.31547973]
[1763647277060,1.74,140.81,140.75,10.61547973]
[1763647277391,20.14725862,140.81,140.72,0.7]
[1763647277611,10.61547973,140.8,140.72,0.7]
[1763647277807,10.61547973,140.8,140.63,50.0]
[1763647277808,10.61547973,140.77,140.69,0.7]
[1763647278113,0.69,140.79,140.71,10.61547973]
[1763647278411,10.61547973,140.78,140.72,10.61547973]
[1763647278718,7.10177889,140.81,140.75,10.61547973]
[1763647278881,1.74,140.8,140.75,10.61547973]
[1763647279282,1.74,140.8,140.75,11.31547973]
[1763647279508,8.84233976,140.8,140.75,11.31547973]
[1763647279689,8.84233976,140.8,140.75,0.7]
[1763647280009,1.74,140.8,140.76,11.31547973]
[1763647280510,1.74,140.8,140.77,11.33547973]
[1763647280890,1.74,140.8,140.77,10.61547973]
[1763647281206,1.74,140.8,140.75,18.44020165]
[1763647281419,1.74,140.8,140.76,0.72]
[1763647281593,1.74,140.8,140.77,10.61547973]
[1763647281794,1.74,140.8,140.74,10.61547973]
[1763647281795,12.35547973,140.8,140.74,10.61547973]
[1763647282003,20.13777193,140.8,140.74,10.61547973]
[1763647282209,20.13777193,140.8,140.73,11.33547973]
[1763647282520,1.74,140.8,140.75,10.61547973]
[1763647282929,1.74,140.8,140.76,0.72]
[1763647283127,9.52234427,140.8,140.75,0.72]
[1763647283336,7.78288184,140.79,140.73,10.61547973]
[1763647283493,18.39836157,140.79,140.72,18.44173101]
[1763647283818,18.39836157,140.79,140.73,10.61547973]
[1763647284193,18.39836157,140.79,140.72,0.72]
[1763647284394,18.39836157,140.79,140.69,29.64978769]
[1763647284395,10.61547973,140.76,140.7,10.61547973]
[1763647284590,10.61547973,140.74,140.67,0.72]
[1763647284806,1.74,140.76,140.67,0.72]
[1763647284807,10.61547973,140.73,140.67,0.72]
[1763647284995,12.35547973,140.72,140.67,0.72]
[1763647285214,1.74,140.72,140.67,11.33547973]
[1763647285430,0.68,140.74,140.67,11.33547973]
[1763647285431,28.73643973,140.76,140.7,10.61547973]
[1763647285739,1.99999999,140.87,140.72,10.61547973]
[1763647286026,10.61547973,140.8,140.74,10.61547973]
[1763647286428,11.29547973,140.8,140.74,10.61547973]
[1763647286825,11.29547973,140.8,140.73,0.72]
[1763647286826,10.61547973,140.79,140.73,11.33547973]
[1763647287028,1.74,140.78,140.73,11.33547973]
[1763647287226,10.61547973,140.76,140.7,0.72]
[1763647287536,17.72015844,140.76,140.68,7.10798278]
[1763647287727,0.68,140.75,140.67,7.82871015]
[1763647287923,0.68,140.75,140.63,35.55213879]
[1763647287924,10.61547973,140.73,140.64,18.49559569]
[1763647288134,10.61547973,140.69,140.63,7.11075651]
[1763647288434,10.61547973,140.68,140.62,11.33547973]
[1763647288741,10.61547973,140.68,140.53,37.57723233]
[1763647288742,10.61547973,140.67,140.61,10.61547973]
[1763647288916,6.48428588,140.67,140.61,6.48428588]
[1763647289115,6.48428588,140.67,140.6,7.83222237]
[1763647289116,0.66,140.68,140.6,0.72]
[1763647289417,13.59413301,140.65,140.59,6.48428588]
[1763647289611,8.22428588,140.64,140.58,6.48428588]
[1763647289814,8.88428588,140.64,140.58,6.48428588]
[1763647290028,6.48428588,140.63,140.57,6.48428588]
[1763647290230,8.88428588,140.64,140.58,6.48428588]
[1763647290610,8.88428588,140.64,140.56,7.11402505]
[1763647290611,1.74,140.64,140.59,0.72]
[1763647290822,9.78882769,140.69,140.61,6.48428588]
[1763647291032,8.22428588,140.68,140.62,6.48428588]
[1763647291228,37.52145494,140.76,140.59,0.72]
[1763647291229,0.66,140.73,140.67,6.48428588]
[1763647291430,1.74,140.72,140.69,13.59211159]
[1763647291834,1.74,140.72,140.69,14.31211159]
[1763647292036,1.74,140.73,140.69,14.31211159]
[1763647292335,75.93714352,140.88,140.72,6.48428588]
[1763647292336,0.66,140.8,140.72,6.48428588]
[1763647292537,0.66,140.8,140.74,6.48428588]
[1763647292538,1.74,140.79,140.74,6.48428588]
[1763647292937,1.74,140.79,140.7,0.72]
[1763647292938,7.14428588,140.78,140.72,6.48428588]
[1763647293131,6.48428588,140.78,140.72,6.48428588]
[1763647293337,6.48428588,140.77,140.71,0.72]
[1763647293521,9.78882769,140.78,140.72,6.48428588]
[1763647293522,13.58767598,140.78,140.72,6.48428588]
[1763647293721,8.88428588,140.79,140.73,6.48428588]
[1763647293918,6.48428588,140.78,140.72,6.48428588]
[1763647294336,2.4,140.79,140.74,6.48428588]
[1763647294637,6.48428588,140.8,140.73,0.72]
[1763647294638,1.74,140.78,140.73,0.72]
[1763647294813,1.74,140.78,140.74,6.48428588]
[1763647295018,1.74,140.78,140.75,6.48428588]
[1763647295416,1.74,140.78,140.73,7.82579891]
[1763647295622,1.74,140.78,140.74,6.48428588]
[1763647295823,1.74,140.78,140.74,7.20428588]
[1763647296237,1.74,140.78,140.74,0.72]
[1763647296540,2.4,140.78,140.71,0.72]
[1763647296714,1.74,140.78,140.74,6.48428588]
[1763647296909,6.48428588,140.79,140.72,0.72]
[1763647296910,1.74,140.79,140.72,0.72]
[1763647297115,1.74,140.79,140.75,6.48428588]
[1763647297336,7.14428588,140.78,140.7,25.59562189]
[1763647297539,6.48428588,140.77,140.72,7.10587482]
[1763647298013,7.14428588,140.77,140.72,7.10587482]
[1763647298215,6.48428588,140.78,140.72,14.3101607]
[1763647298516,2.4,140.79,140.73,6.48428588]
[1763647298517,15.98716713,140.79,140.73,6.48428588]
[1763647299110,14.24716713,140.79,140.73,6.48428588]
[1763647299525,8.84336782,140.78,140.73,13.58991783]
[1763647299726,15.3276537,140.78,140.73,13.58991783]
[1763647299947,0.66,140.77,140.72,7.10613219]
[1763647300132,0.66,140.77,140.72,14.31041807]
[1763647300340,8.84336782,140.78,140.65,7.10984713]
[1763647300521,1.74,140.77,140.72,6.48428588]
[1763647300825,8.88428588,140.77,140.72,0.72]
[1763647301446,8.88428588,140.77,140.73,7.10580544]
[1763647301655,7.10336782,140.78,140.73,7.10580544]
[1763647301656,1.74,140.76,140.73,7.10580544]
[1763647302243,1.74,140.76,140.72,6.48428588]
[1763647302444,1.74,140.76,140.71,7.20428588]
[1763647302837,6.48428588,140.77,140.71,7.20428588]
[1763647303029,7.76336782,140.78,140.71,7.20428588]
[1763647303220,7.76336782,140.78,140.68,24.87871841]
[1763647303221,6.48428588,140.8,140.72,0.72]
[1763647303428,1.74,140.79,140.75,13.58908161]
[1763647303727,6.68428588,140.83,140.77,6.48428588]
[1763647303921,6.68428588,140.83,140.75,24.86678507]
[1763647303922,8.22428588,140.82,140.76,7.20428588]
[1763647304122,6.48428588,140.8,140.72,0.72]
[1763647304317,20.52096,140.82,140.72,7.20428588]
[1763647304318,6.48428588,140.79,140.72,7.20428588]
[1763647304539,1.74,140.78,140.74,6.48428588]
[1763647304953,1.74,140.78,140.72,0.72]
[1763647305123,1.74,140.78,140.73,6.48428588]
[1763647305319,1.74,140.78,140.74,6.48428588]
[1763647305526,6.48428588,140.8,140.72,0.72]
[1763647305527,1.74,140.79,140.72,0.72]
[1763647305748,8.22428588,140.79,140.73,13.58994875]
[1763647306247,8.22428588,140.79,140.73,14.30994875]
[1763647306445,0.2,140.83,140.74,6.48428588]
[1763647306649,6.48428588,140.82,140.76,6.48428588]
[1763647306852,8.42428588,140.83,140.77,7.20428588]
[1763647307024,8.42428588,140.83,140.76,6.48428588]
[1763647307229,7.14428588,140.82,140.76,6.48428588]
[1763647307445,6.48428588,140.82,140.77,7.10378631]
[1763647307642,14.24563732,140.82,140.77,0.72]
[1763647307947,14.24563732,140.82,140.75,7.20428588]
[1763647307948,6.48428588,140.81,140.75,7.20428588]
[1763647308175,6.48428588,140.82,140.76,32.06911581]
[1763647308331,13.58576813,140.82,140.76,14.30838834]
[1763647308731,6.48428588,140.82,140.76,32.06911581]
[1763647308923,6.48428588,140.82,140.76,25.58482993]
[1763647309122,6.48428588,140.82,140.76,14.30838834]
[1763647309561,8.42428588,140.83,140.78,7.10328171]
[1763647309760,9.08428588,140.83,140.78,7.10328171]
[1763647309961,0.2,140.83,140.79,0.72]
[1763647310274,0.2,140.83,140.77,7.10360366]
[1763647310275,6.48428588,140.82,140.77,7.10360366]
[1763647310567,6.48428588,140.81,140.77,7.10360366]
[1763647310850,7.16428588,140.81,140.76,7.10422513]
[1763647311058,6.48428588,140.82,140.77,0.66]
[1763647311526,1.74,140.81,140.77,0.66]
[1763647311722,1.74,140.81,140.77,7.76367631]
[1763647312858,8.22428588,140.81,140.75,6.48428588]
[1763647313065,8.90428588,140.81,140.75,7.14428588]
[1763647313227,1.74,140.81,140.76,7.14428588]
[1763647313647,0.2,140.83,140.8,6.48428588]
[1763647313836,0.2,140.83,140.77,25.5232521]
[1763647314045,0.2,140.83,140.79,6.48428588]
[1763647314441,0.2,140.83,140.8,0.66]
[1763647314842,0.2,140.83,140.8,7.14428588]
[1763647315258,0.2,140.83,140.8,0.66]
[1763647315657,0.2,140.83,140.81,7.10176834]
[1763647315959,0.2,140.83,140.82,7.14428588]
[1763647316158,0.2,140.83,140.82,0.66]
[1763647316534,0.2,140.83,140.8,7.76207868]
[1763647317060,0.2,140.83,140.81,0.66]
[1763647317638,0.2,140.83,140.81,7.76168498]
[1763647317837,0.2,140.83,140.81,7.10168498]
[1763647318258,0.2,140.83,140.79,7.76231684]
[1763647318466,0.2,140.83,140.79,14.24660272]
[1763647318646,0.2,140.83,140.79,32.00354568]
[1763647319041,2.62,140.83,140.79,7.10231684]
[1763647319370,9.10428588,140.83,140.79,7.10231684]
[1763647319959,9.10428588,140.83,140.78,7.103071]
[1763647320161,6.48428588,140.82,140.77,7.10363599]
[1763647320350,0.68,140.81,140.77,7.10363599]
[1763647320556,0.68,140.81,140.75,14.24897891]
[1763647320744,7.16428588,140.81,140.75,14.24897891]
[1763647320944,7.16428588,140.81,140.75,25.52668237]
[1763647321140,6.48428588,140.8,140.75,24.86668237]